[Event "35th Roquetas Festival 2024"]
[Site "Roquetas de Mar"]
[Date "2024.01.03"]
[Round "2.16"]
[White "Camacho Collados, Jose"]
[Black "Alba Fernandez, Nicolas"]
[Result "1/2-1/2"]
[ECO "D02"]
[WhiteElo "2381"]
[BlackElo "2123"]
[Annotator "RC"]
[PlyCount "109"]
[EventDate "2024.01.02"]
[EventType "swiss"]
[EventCountry "ESP"]
[SourceTitle "playchess.com"]
[Source "ChessBase"]
[SourceQuality "1"]
[TimeControl "5400+30"]

1. d4 {[%emt 0:00:02]} d5 {[%emt 0:03:21]} 2. Nf3 {[%emt 0:00:11]} c5 {[%emt 0:00:34]} 3. dxc5 {[%emt 0:00:21]} Nf6 {[%emt 0:00:26]} 4. c4 {[%emt 0:05:47]} e6 {[%emt 0:02:51]} 5. Be3 {[%emt 0:03:19]} Nbd7 {[%emt 0:00:33]} 6. cxd5 {[%emt 0:01:40]} Nxd5 {[%emt 0:00:30]} 7. Bd4 {[%emt 0:00:20]} Bxc5 {[%emt 0:00:06]} 8. Bxg7 {[%emt 0:03:26]} Rg8 {[%emt 0:01:46]} 9. Bd4 {[%emt 0:00:11]} e5 {[%emt 0:00:58]} 10. Bxc5 {[%emt 0:08:05]} Nxc5 {[%emt 0:00:06]} 11. Nc3 {[%emt 0:00:29]} Be6 {[%emt 0:01:14]} 12. Nxd5 {[%emt 0:05:55]} Bxd5 {[%emt 0:02:12]} 13. e3 {[%emt 0:01:36]} a6 {[%emt 0:12:53]} 14. Rc1 {[%emt 0:13:27]} Ne4 {[%emt 0:03:28]} 15. Nd2 {[%emt 0:03:07]} Qa5 {[%emt 0:06:11]} 16. f3 {[%emt 0:02:57]} Nxd2 {[%emt 0:02:53]} 17. Qxd2 {[%emt 0:00:06]} Qxd2+ {[%emt 0:00:10]} 18. Kxd2 {[%emt 0:00:02]} Bxa2 {[%emt 0:00:27]} 19. e4 {[%emt 0:03:18]} Rg6 {[%emt 0:05:16]} 20. Rc5 {[%emt 0:04:04]} Rb6 {[%emt 0:06:26]} 21. Kc1 {[%emt 0:01:04]} Ke7 {[%emt 0:13:59]} 22. Be2 {[%emt 0:09:21]} Kd6 {[%emt 0:05:56]} 23. Rc3 {[%emt 0:00:36]} Bb3 {[%emt 0:00:06]} 24. Bd1 {[%emt 0:02:05]} Be6 {[%emt 0:02:02]} 25. Ba4 {[%emt 0:02:53]} Rc8 {[%emt 0:00:05]} 26. Rd1+ {[%emt 0:00:36]} Ke7 {[%emt 0:00:06]} 27. Rxc8 {[%emt 0:00:58]} Bxc8 {[%emt 0:00:04]} 28. Rd5 {[%emt 0:00:08]} f6 {[%emt 0:04:11]} 29. Rc5 {[%emt 0:02:06]} Kd8 {[%emt 0:00:05]} 30. f4 {[%emt 0:06:12]} Rb4 {[%emt 0:10:06]} 31. Bc2 {[%emt 0:00:09]} exf4 {[%emt 0:00:08]} 32. Rh5 {[%emt 0:00:24]} Bg4 {[%emt 0:03:07]} 33. Rxh7 {[%emt 0:02:51]} f3 {[%emt 0:00:06]} 34. gxf3 {[%emt 0:07:56]} Bxf3 {[%emt 0:00:06]} 35. Rh4 {[%emt 0:00:34]} Ke7 {[%emt 0:00:18]} 36. b3 {[%emt 0:00:18]} Rb5 {[%emt 0:04:57]} 37. Kd2 {[%emt 0:04:14]} Rh5 {[%emt 0:00:27]} 38. Rxh5 {[%emt 0:00:04]} Bxh5 {[%emt 0:00:02]} 39. Ke3 {[%emt 0:00:25]} a5 {[%emt 0:01:58]} 40. Kd4 {[%emt 0:00:06]} Kd6 {[%emt 0:00:08]} 41. Bd3 {[%emt 0:04:23]} Bd1 {[%emt 0:00:25]} 42. Bc4 {[%emt 0:00:36]} Bh5 {[%emt 0:00:07]} 43. h4 {[%emt 0:02:02]} b6 {[%emt 0:00:37]} 44. Bd3 {[%emt 0:01:31]} Bd1 {[%emt 0:00:05]} 45. Bc4 {[%emt 0:01:15]} Bh5 {[%emt 0:00:05]} 46. Bg8 {[%emt 0:01:11]} Bg6 {[%emt 0:00:22]} 47. Kc4 {[%emt 0:01:03]} Be8 {[%emt 0:01:07]} 48. Kd4 {[%emt 0:00:23]} Bh5 {[%emt 0:00:06]} 49. Bd5 {[%emt 0:00:37]} Bg6 {[%emt 0:00:43]} 50. Bc4 {[%emt 0:00:28]} Bh5 {[%emt 0:00:08]} 51. Bb5 {[%emt 0:00:31]} Bf7 {[%emt 0:00:11]} 52. Ba4 {[%emt 0:00:30]} Bh5 {[%emt 0:00:57]} 53. Bb5 {[%emt 0:00:18]} Bf7 {[%emt 0:00:05]} 54. Ba4 {[%emt 0:00:23]} Bh5 {[%emt 0:00:05]} 55. Bb5 {[%emt 0:00:25]} 1/2-1/2

[Event "35th Roquetas Festival 2024"]
[Site "Roquetas de Mar"]
[Date "2024.01.03"]
[Round "2.17"]
[White "Torres Rebolledo, Victor"]
[Black "Bernal Moro, Luis Javier"]
[Result "1/2-1/2"]
[ECO "E73"]
[WhiteElo "2124"]
[BlackElo "2370"]
[Annotator "RC"]
[PlyCount "60"]
[EventDate "2024.01.02"]
[EventType "swiss"]
[EventCountry "ESP"]
[SourceTitle "playchess.com"]
[Source "ChessBase"]
[SourceQuality "1"]
[TimeControl "5400+30"]

1. d4 {[%emt 0:03:11]} Nf6 {[%emt 0:00:07]} 2. c4 {[%emt 0:00:13]} g6 {[%emt 0:00:16]} 3. Nc3 {[%emt 0:00:14]} Bg7 {[%emt 0:00:09]} 4. e4 {[%emt 0:00:18]} d6 {[%emt 0:00:08]} 5. Be2 {[%emt 0:00:06]} O-O {[%emt 0:01:18]} 6. Be3 {[%emt 0:00:05]} e5 {[%emt 0:02:05]} 7. d5 {[%emt 0:00:07]} Na6 {[%emt 0:00:49]} 8. h4 {[%emt 0:02:47]} Nc5 9. Qc2 {[%emt 0:00:16]} c6 {[%emt 0:02:30]} 10. h5 {[%emt 0:01:18]} cxd5 {[%emt 0:02:28]} 11. cxd5 {[%emt 0:00:07]} Qa5 {[%emt 0:00:43]} 12. h6 {[%emt 0:00:21]} Bh8 {[%emt 0:01:34]} 13. f3 {[%emt 0:00:24]} Nh5 {[%emt 0:08:52]} 14. Rb1 {[%emt 0:00:32]} Qd8 {[%emt 0:17:20]} 15. b4 {[%emt 0:05:32]} Na6 {[%emt 0:01:33]} 16. g4 {[%emt 0:08:14]} Nf4 {[%emt 0:04:44]} 17. Bf1 {[%emt 0:08:49]} Bf6 {[%emt 0:20:15]} 18. Nh3 {[%emt 0:05:41]} Bh4+ {[%emt 0:09:23]} 19. Kd2 {[%emt 0:08:38]} Nxh3 {[%emt 0:00:44]} 20. Bxh3 {[%emt 0:05:13]} Bg5 {[%emt 0:00:16]} 21. Qd3 {[%emt 0:01:06]} Bd7 {[%emt 0:05:40]} 22. Rhc1 {[%emt 0:05:41]} f6 {[%emt 0:07:38]} 23. Bf1 {[%emt 0:09:56]} Qe7 {[%emt 0:07:55]} 24. Bxg5 {[%emt 0:03:37]} fxg5 {[%emt 0:00:04]} 25. Qe3 {[%emt 0:00:17]} Nc7 {[%emt 0:01:08]} 26. Be2 {[%emt 0:00:35]} Rfc8 {[%emt 0:01:00]} 27. Rb2 {[%emt 0:03:03]} Qd8 {[%emt 0:02:24]} 28. Rbc2 {[%emt 0:01:08]} Ne8 {[%emt 0:01:56]} 29. a4 {[%emt 0:03:09]} Kf7 {[%emt 0:00:15]} 30. Bb5 {[%emt 0:02:37]} Bxb5 {[%emt 0:01:08]} 1/2-1/2

[Event "35th Roquetas Festival 2024"]
[Site "Roquetas de Mar"]
[Date "2024.01.03"]
[Round "2.18"]
[White "Fiorito, Francisco"]
[Black "Garrido Diaz, Ernesto"]
[Result "1-0"]
[ECO "A06"]
[WhiteElo "2370"]
[BlackElo "2120"]
[Annotator "RC"]
[PlyCount "133"]
[EventDate "2024.01.02"]
[EventType "swiss"]
[EventCountry "ESP"]
[SourceTitle "playchess.com"]
[Source "ChessBase"]
[SourceQuality "1"]
[TimeControl "5400+30"]

1. Nf3 {[%emt 0:00:06]} d5 {[%emt 0:00:28]} 2. b3 {[%emt 0:00:05]} Nf6 {[%emt 0:00:08]} 3. Bb2 {[%emt 0:00:05]} e6 {[%emt 0:00:31]} 4. e3 {[%emt 0:00:05]} Be7 {[%emt 0:01:02]} 5. d4 {[%emt 0:00:09]} b6 {[%emt 0:01:18]} 6. Bd3 {[%emt 0:02:15]} Bb7 {[%emt 0:00:06]} 7. O-O {[%emt 0:00:18]} O-O {[%emt 0:00:26]} 8. a3 {[%emt 0:01:01]} Nbd7 {[%emt 0:01:56]} 9. c4 {[%emt 0:00:39]} c5 {[%emt 0:06:07]} 10. Nc3 {[%emt 0:00:55]} Rc8 {[%emt 0:02:34]} 11. Rc1 {[%emt 0:00:50]} Ne4 {[%emt 0:08:22]} 12. cxd5 {[%emt 0:05:43]} exd5 {[%emt 0:02:35]} 13. dxc5 {[%emt 0:01:12]} Ndxc5 {[%emt 0:01:46]} 14. Be2 {[%emt 0:02:12]} Bf6 {[%emt 0:06:21]} 15. Nd4 {[%emt 0:01:30]} a6 {[%emt 0:08:17]} 16. Na2 {[%emt 0:03:19]} g6 {[%emt 0:08:36]} 17. Nb4 {[%emt 0:10:31]} a5 {[%emt 0:04:05]} 18. Nd3 {[%emt 0:02:04]} Nxd3 {[%emt 0:03:23]} 19. Bxd3 {[%emt 0:01:24]} Rxc1 {[%emt 0:05:32]} 20. Qxc1 {[%emt 0:00:36]} Qe7 {[%emt 0:01:14]} 21. Rd1 {[%emt 0:03:24]} Nc5 {[%emt 0:05:25]} 22. Bc2 {[%emt 0:01:54]} Ne6 {[%emt 0:04:54]} 23. Ne2 {[%emt 0:02:54]} Rc8 {[%emt 0:01:14]} 24. Qb1 {[%emt 0:07:26]} Bxb2 {[%emt 0:09:06]} 25. Qxb2 {[%emt 0:00:06]} Qg5 {[%emt 0:00:31]} 26. Nd4 {[%emt 0:04:06]} Qf6 {[%emt 0:02:03]} 27. h3 {[%emt 0:17:56]} Nxd4 {[%emt 0:03:59]} 28. Rxd4 {[%emt 0:00:17]} Qc6 {[%emt 0:01:42]} 29. Bd1 {[%emt 0:00:28]} Qc3 {[%emt 0:01:18]} 30. Qe2 {[%emt 0:03:33]} Re8 {[%emt 0:03:16]} 31. Qd2 {[%emt 0:04:12]} Qa1 {[%emt 0:02:03]} 32. a4 {[%emt 0:00:25]} Qb1 {[%emt 0:02:15]} 33. Kh2 {[%emt 0:00:23]} Rc8 {[%emt 0:00:49]} 34. Rf4 {[%emt 0:04:18]} Qa1 {[%emt 0:02:55]} 35. Bf3 {[%emt 0:02:03]} Qe5 {[%emt 0:00:04]} 36. g3 {[%emt 0:00:48]} Qc3 {[%emt 0:00:49]} 37. Qd1 {[%emt 0:02:05]} Qc2 {[%emt 0:00:53]} 38. Qd4 {[%emt 0:00:07]} Qxb3 {[%emt 0:00:40]} 39. Qf6 {[%emt 0:00:16]} Rf8 {[%emt 0:00:24]} 40. Bg4 {[%emt 0:00:59]} d4 {[%emt 0:00:34]} 41. Rxd4 {[%emt 0:00:54]} Qb1 {[%emt 0:00:21]} 42. Bf3 {[%emt 0:00:07]} Bxf3 {[%emt 0:00:12]} 43. Qxf3 {[%emt 0:00:02]} Qb3 {[%emt 0:00:21]} 44. Qc6 {[%emt 0:00:23]} h5 {[%emt 0:01:21]} 45. Kg2 {[%emt 0:00:04]} Qa3 {[%emt 0:00:33]} 46. Qxb6 {[%emt 0:00:09]} Qc3 {[%emt 0:00:20]} 47. Qf6 {[%emt 0:00:42]} Qc5 {[%emt 0:00:31]} 48. Qf3 {[%emt 0:00:30]} Rc8 {[%emt 0:00:14]} 49. Rd5 {[%emt 0:00:40]} Qb4 {[%emt 0:00:21]} 50. Rd7 {[%emt 0:00:24]} Qc4 {[%emt 0:00:31]} 51. Qd5 {[%emt 0:02:05]} Rc5 {[%emt 0:00:24]} 52. Qa8+ {[%emt 0:03:05]} Kg7 {[%emt 0:01:01]} 53. Rd4 {[%emt 0:00:19]} Qe6 {[%emt 0:00:20]} 54. Qb7 {[%emt 0:02:18]} Rf5 {[%emt 0:00:21]} 55. Qb2 {[%emt 0:00:46]} Kh7 {[%emt 0:00:55]} 56. Rd8 {[%emt 0:01:10]} Re5 {[%emt 0:00:14]} 57. f4 {[%emt 0:02:01]} Qc6+ {[%emt 0:00:02]} 58. Kf2 {[%emt 0:01:18]} Re8 {[%emt 0:00:09]} 59. Rxe8 {[%emt 0:00:44]} Qxe8 {[%emt 0:00:02]} 60. Qd4 {[%emt 0:00:47]} Qc8 {[%emt 0:00:56]} 61. Qd5 {[%emt 0:00:27]} Kg8 {[%emt 0:00:38]} 62. Qxa5 {[%emt 0:00:47]} Qxh3 {[%emt 0:00:05]} 63. Qa8+ {[%emt 0:00:06]} Kg7 {[%emt 0:00:20]} 64. Qd5 {[%emt 0:00:05]} Qc8 {[%emt 0:00:30]} 65. a5 {[%emt 0:00:14]} Qc2+ {[%emt 0:00:14]} 66. Kf3 {[%emt 0:00:03]} Qa4 {[%emt 0:00:46]} 67. Qd4+ {[%emt 0:00:03]} 1-0

[Event "35th Roquetas Festival 2024"]
[Site "Roquetas de Mar"]
[Date "2024.01.03"]
[Round "2.19"]
[White "Bravo De La Vega, Alvaro"]
[Black "Habans Aguerrea, Javier"]
[Result "0-1"]
[ECO "B12"]
[WhiteElo "2121"]
[BlackElo "2368"]
[Annotator "ChessBase"]
[PlyCount "66"]
[EventDate "2024.01.02"]
[EventType "swiss"]
[EventCountry "ESP"]
[SourceTitle "playchess.com"]
[Source "ChessBase"]
[SourceQuality "1"]
[TimeControl "5400+30"]

1. e4 {[%emt 0:03:00]} c6 {[%emt 0:00:15]} 2. d4 {[%emt 0:00:08]} d5 {[%emt 0:00:10]} 3. e5 {[%emt 0:00:10]} c5 {[%emt 0:00:14]} 4. dxc5 {[%emt 0:00:09]} e6 {[%emt 0:00:08]} 5. Qh5 {[%emt 0:00:08]} Bxc5 {[%emt 0:05:39]} 6. Bd3 {[%emt 0:00:11]} Qb6 {[%emt 0:15:02]} 7. Qe2 {[%emt 0:01:33]} Nc6 {[%emt 0:02:07]} 8. Nf3 {[%emt 0:00:56]} f6 {[%emt 0:06:05]} 9. O-O {[%emt 0:07:18]} fxe5 {[%emt 0:00:22]} 10. Nxe5 {[%emt 0:00:11]} Nf6 {[%emt 0:08:49]} 11. Nc3 {[%emt 0:22:32]} Bd6 {[%emt 0:19:50]} 12. Ng4 {[%emt 0:07:17]} O-O {[%emt 0:07:15]} 13. Nxf6+ {[%emt 0:00:58]} Rxf6 {[%emt 0:00:37]} 14. Bg5 {[%emt 0:03:20]} Rf7 {[%emt 0:01:09]} 15. Qh5 {[%emt 0:05:23]} g6 {[%emt 0:01:20]} 16. Bxg6 {[%emt 0:04:57]} hxg6 {[%emt 0:00:02]} 17. Qxg6+ {[%emt 0:00:11]} Rg7 {[%emt 0:00:42]} 18. Qe8+ {[%emt 0:00:09]} Bf8 {[%emt 0:00:54]} 19. Bh6 {[%emt 0:00:11]} Rf7 {[%emt 0:00:09]} 20. Bxf8 {[%emt 0:00:08]} Bd7 {[%emt 0:00:25]} 21. Qxa8 {[%emt 0:02:32]} Rxf8 {[%emt 0:00:06]} 22. Qxf8+ {[%emt 0:00:26]} Kxf8 {[%emt 0:00:02]} 23. Na4 {[%emt 0:02:39]} Qb4 {[%emt 0:01:54]} 24. b3 {[%emt 0:00:11]} Nd4 {[%emt 0:00:43]} 25. a3 {[%emt 0:02:38]} Qa5 {[%emt 0:02:28]} 26. Rad1 {[%emt 0:03:11]} Nxc2 {[%emt 0:00:27]} 27. Rc1 {[%emt 0:00:40]} Bxa4 {[%emt 0:03:04]} 28. Rxc2 {[%emt 0:00:13]} Bxb3 {[%emt 0:00:06]} 29. Rc8+ {[%emt 0:00:43]} Ke7 {[%emt 0:00:09]} 30. h4 {[%emt 0:00:11]} d4 {[%emt 0:01:07]} 31. Rb1 {[%emt 0:00:10]} Bd5 {[%emt 0:00:15]} 32. h5 {[%emt 0:01:23]} Be4 {[%emt 0:00:10]} 33. Rd1 {[%emt 0:00:24]} Qg5 {[%emt 0:00:09]} 0-1

[Event "35th Roquetas Festival 2024"]
[Site "Roquetas de Mar"]
[Date "2024.01.03"]
[Round "2.20"]
[White "Buiza Prieto, Eihartze"]
[Black "Suarez Uriel, Adrian"]
[Result "0-1"]
[ECO "B24"]
[WhiteElo "2115"]
[BlackElo "2365"]
[Annotator "RC"]
[PlyCount "52"]
[EventDate "2024.01.02"]
[EventType "swiss"]
[EventCountry "ESP"]
[SourceTitle "playchess.com"]
[Source "ChessBase"]
[SourceQuality "1"]
[TimeControl "5400+30"]

1. e4 c5 {[%emt 0:05:28]} 2. Nc3 {[%emt 0:02:21]} Nc6 {[%emt 0:00:06]} 3. Bb5 {[%emt 0:00:09]} Nd4 {[%emt 0:00:08]} 4. Bc4 {[%emt 0:00:11]} e6 {[%emt 0:01:29]} 5. Nge2 {[%emt 0:00:47]} a6 {[%emt 0:00:13]} 6. Nxd4 {[%emt 0:00:35]} cxd4 {[%emt 0:00:37]} 7. Ne2 {[%emt 0:00:04]} Bc5 {[%emt 0:03:33]} 8. d3 {[%emt 0:01:01]} Ne7 {[%emt 0:01:07]} 9. Bb3 {[%emt 0:00:08]} O-O {[%emt 0:00:37]} 10. O-O {[%emt 0:00:24]} b5 {[%emt 0:01:57]} 11. f4 {[%emt 0:06:19]} f5 {[%emt 0:00:23]} 12. Kh1 {[%emt 0:04:08]} Bb7 {[%emt 0:00:22]} 13. Ng3 {[%emt 0:03:27]} Qe8 {[%emt 0:04:13]} 14. Bd2 {[%emt 0:07:39]} a5 {[%emt 0:09:20]} 15. a4 {[%emt 0:01:29]} b4 {[%emt 0:01:19]} 16. Qe2 {[%emt 0:06:34]} Bb6 {[%emt 0:01:21]} 17. Rae1 {[%emt 0:01:13]} Rc8 {[%emt 0:01:24]} 18. Qh5 {[%emt 0:07:33]} Qxh5 {[%emt 0:01:39]} 19. Nxh5 {[%emt 0:00:29]} fxe4 {[%emt 0:00:34]} 20. dxe4 {[%emt 0:00:19]} Ba6 {[%emt 0:00:07]} 21. Rf3 {[%emt 0:02:06]} Bc4 {[%emt 0:00:04]} 22. f5 {[%emt 0:15:05]} Bxb3 {[%emt 0:00:24]} 23. cxb3 {[%emt 0:00:07]} exf5 {[%emt 0:00:08]} 24. Bg5 {[%emt 0:00:40]} Rce8 {[%emt 0:01:40]} 25. exf5 {[%emt 0:06:23]} Nxf5 {[%emt 0:01:56]} 26. Ref1 {[%emt 0:00:15]} Ne3 {[%emt 0:01:39]} 0-1

[Event "35th Roquetas Festival 2024"]
[Site "Roquetas de Mar"]
[Date "2024.01.03"]
[Round "2.21"]
[White "Macak, Stefan"]
[Black "Castro Quijano, Eduardo"]
[Result "1-0"]
[ECO "C43"]
[WhiteElo "2354"]
[BlackElo "2103"]
[Annotator "RC"]
[PlyCount "107"]
[EventDate "2024.01.02"]
[EventType "swiss"]
[EventCountry "ESP"]
[SourceTitle "playchess.com"]
[Source "ChessBase"]
[SourceQuality "1"]
[TimeControl "5400+30"]

1. e4 e5 {[%emt 0:03:24]} 2. Nf3 {[%emt 0:01:02]} Nf6 {[%emt 0:00:17]} 3. d4 {[%emt 0:01:59]} Nxe4 {[%emt 0:01:29]} 4. dxe5 {[%emt 0:00:16]} d5 {[%emt 0:01:23]} 5. Nbd2 {[%emt 0:00:34]} Be7 {[%emt 0:12:32]} 6. Be2 {[%emt 0:16:16]} O-O {[%emt 0:03:34]} 7. O-O {[%emt 0:01:25]} Nc5 {[%emt 0:13:48]} 8. Nb3 {[%emt 0:09:10]} Ne6 {[%emt 0:00:18]} 9. Nbd4 {[%emt 0:13:45]} Nxd4 {[%emt 0:02:25]} 10. Qxd4 {[%emt 0:04:22]} c5 {[%emt 0:00:43]} 11. Qf4 {[%emt 0:01:25]} Nc6 {[%emt 0:00:36]} 12. Qg3 {[%emt 0:03:09]} Bf5 {[%emt 0:09:05]} 13. c3 {[%emt 0:03:16]} d4 {[%emt 0:06:41]} 14. Rd1 {[%emt 0:05:34]} d3 {[%emt 0:06:08]} 15. Bf1 {[%emt 0:00:39]} c4 {[%emt 0:01:56]} 16. Bh6 {[%emt 0:06:22]} g6 {[%emt 0:04:18]} 17. Bxf8 {[%emt 0:01:13]} Bxf8 {[%emt 0:00:58]} 18. Qf4 {[%emt 0:06:35]} b5 {[%emt 0:03:58]} 19. a4 {[%emt 0:03:35]} a6 {[%emt 0:00:04]} 20. g4 {[%emt 0:00:24]} Be6 {[%emt 0:00:29]} 21. axb5 {[%emt 0:02:37]} axb5 {[%emt 0:00:04]} 22. Bg2 {[%emt 0:00:23]} Rc8 {[%emt 0:06:34]} 23. Ng5 {[%emt 0:02:20]} Bd5 {[%emt 0:00:52]} 24. Ra6 {[%emt 0:11:10]} Bh6 {[%emt 0:02:06]} 25. Bxd5 {[%emt 0:02:28]} Qxd5 {[%emt 0:00:04]} 26. Ne4 {[%emt 0:01:15]} Bxf4 {[%emt 0:01:40]} 27. Nf6+ {[%emt 0:00:00]} Kg7 {[%emt 0:06:45]} 28. Nxd5 {[%emt 0:00:02]} Bxe5 {[%emt 0:00:05]} 29. Rb6 {[%emt 0:01:17]} Na7 {[%emt 0:02:09]} 30. Rb7 {[%emt 0:00:57]} Rc5 {[%emt 0:00:10]} 31. Ne7 {[%emt 0:01:23]} Rc7 {[%emt 0:01:02]} 32. Rxc7 {[%emt 0:00:09]} Bxc7 {[%emt 0:00:04]} 33. Ra1 {[%emt 0:00:24]} Bb6 {[%emt 0:00:07]} 34. Kf1 {[%emt 0:01:11]} Bc5 {[%emt 0:00:18]} 35. Nd5 {[%emt 0:00:26]} Nc6 {[%emt 0:01:20]} 36. f4 {[%emt 0:00:53]} b4 {[%emt 0:00:06]} 37. Ra6 {[%emt 0:00:26]} bxc3 {[%emt 0:00:56]} 38. bxc3 {[%emt 0:00:01]} Ne7 {[%emt 0:00:54]} 39. Nxe7 {[%emt 0:00:03]} Bxe7 {[%emt 0:00:03]} 40. Rc6 {[%emt 0:00:36]} h5 {[%emt 0:02:20]} 41. h3 {[%emt 0:00:50]} hxg4 {[%emt 0:00:07]} 42. hxg4 {[%emt 0:00:00]} f5 {[%emt 0:00:57]} 43. g5 {[%emt 0:00:27]} Ba3 {[%emt 0:00:09]} 44. Rc7+ {[%emt 0:01:06]} Kf8 {[%emt 0:00:17]} 45. Rxc4 {[%emt 0:00:01]} Bc1 {[%emt 0:00:14]} 46. Kf2 {[%emt 0:00:42]} Bd2 {[%emt 0:00:34]} 47. Kf3 {[%emt 0:00:33]} Ke7 {[%emt 0:00:18]} 48. Rc6 {[%emt 0:00:30]} Bxf4 {[%emt 0:00:20]} 49. Rxg6 {[%emt 0:00:21]} d2 {[%emt 0:01:09]} 50. Ke2 {[%emt 0:00:08]} Be3 {[%emt 0:00:06]} 51. c4 {[%emt 0:01:25]} f4 {[%emt 0:00:09]} 52. Rf6 {[%emt 0:00:17]} f3+ {[%emt 0:00:06]} 53. Rxf3 {[%emt 0:00:28]} Bxg5 {[%emt 0:00:04]} 54. Rd3 {[%emt 0:00:22]} 1-0

[Event "35th Roquetas Festival 2024"]
[Site "Roquetas de Mar"]
[Date "2024.01.03"]
[Round "2.22"]
[White "Vesga Izeta, Markel"]
[Black "Raczek, Krzysztof"]
[Result "0-1"]
[ECO "A41"]
[WhiteElo "2093"]
[BlackElo "2347"]
[Annotator "RC"]
[PlyCount "116"]
[EventDate "2024.01.02"]
[EventType "swiss"]
[EventCountry "ESP"]
[SourceTitle "playchess.com"]
[Source "ChessBase"]
[SourceQuality "1"]
[TimeControl "5400+30"]

1. d4 {[%emt 0:00:03]} d6 {[%emt 0:00:30]} 2. Nf3 {[%emt 0:00:35]} Bg4 {[%emt 0:00:08]} 3. c4 {[%emt 0:00:06]} Nd7 {[%emt 0:00:06]} 4. Nc3 {[%emt 0:01:00]} Ngf6 {[%emt 0:00:05]} 5. g3 {[%emt 0:03:51]} e5 {[%emt 0:05:08]} 6. Bg2 {[%emt 0:00:46]} Be7 {[%emt 0:00:35]} 7. O-O {[%emt 0:02:43]} O-O {[%emt 0:00:03]} 8. h3 {[%emt 0:09:44]} Bh5 {[%emt 0:00:20]} 9. Nh4 {[%emt 0:05:21]} c6 {[%emt 0:02:56]} 10. Nf5 {[%emt 0:00:48]} Re8 {[%emt 0:09:54]} 11. g4 {[%emt 0:07:48]} Bg6 {[%emt 0:00:36]} 12. e4 {[%emt 0:00:09]} Bf8 {[%emt 0:29:28]} 13. Be3 {[%emt 0:05:38]} Qa5 {[%emt 0:21:44]} 14. Rc1 {[%emt 0:04:29]} Rad8 {[%emt 0:01:28]} 15. Ng3 {[%emt 0:07:51]} Nb6 {[%emt 0:05:30]} 16. g5 {[%emt 0:07:20]} exd4 {[%emt 0:05:44]} 17. Qxd4 {[%emt 0:00:10]} Nfd7 {[%emt 0:01:33]} 18. Rfd1 {[%emt 0:06:47]} c5 {[%emt 0:01:34]} 19. Qd3 {[%emt 0:01:44]} Ne5 {[%emt 0:00:26]} 20. Qe2 {[%emt 0:00:07]} Nexc4 {[%emt 0:00:41]} 21. Bf4 {[%emt 0:00:58]} d5 {[%emt 0:06:19]} 22. Bc7 {[%emt 0:00:24]} Rc8 {[%emt 0:00:22]} 23. Nxd5 {[%emt 0:00:43]} Qxa2 {[%emt 0:00:32]} 24. Bxb6 {[%emt 0:10:37]} Nxb6 {[%emt 0:00:11]} 25. Nxb6 {[%emt 0:00:01]} axb6 {[%emt 0:00:01]} 26. f4 {[%emt 0:00:02]} Qe6 {[%emt 0:04:31]} 27. Qf2 {[%emt 0:02:17]} c4 {[%emt 0:01:02]} 28. f5 {[%emt 0:00:35]} Qe5 {[%emt 0:00:32]} 29. Qf3 {[%emt 0:02:16]} Bd6 {[%emt 0:00:45]} 30. fxg6 {[%emt 0:00:49]} fxg6 {[%emt 0:00:02]} 31. Nf1 {[%emt 0:03:06]} Qxb2 {[%emt 0:01:33]} 32. e5 {[%emt 0:00:46]} Bc5+ {[%emt 0:01:25]} 33. Kh1 {[%emt 0:00:01]} Kh8 {[%emt 0:00:32]} 34. Rxc4 {[%emt 0:01:36]} Qxe5 {[%emt 0:00:23]} 35. h4 {[%emt 0:03:30]} Rf8 {[%emt 0:00:17]} 36. Qe4 {[%emt 0:00:41]} Qb2 {[%emt 0:00:41]} 37. Qc2 {[%emt 0:00:24]} Qe5 {[%emt 0:00:38]} 38. Re4 {[%emt 0:02:36]} Qb8 {[%emt 0:00:42]} 39. Qa4 {[%emt 0:05:02]} Rcd8 {[%emt 0:00:29]} 40. Qa1 {[%emt 0:02:37]} Qc8 {[%emt 0:00:26]} 41. Rxd8 {[%emt 0:00:36]} Qxd8 {[%emt 0:00:02]} 42. Qe1 {[%emt 0:00:36]} b5 {[%emt 0:00:31]} 43. Re5 {[%emt 0:00:50]} b6 {[%emt 0:00:28]} 44. Nd2 {[%emt 0:01:55]} Bb4 {[%emt 0:00:37]} 45. Rd5 {[%emt 0:00:12]} Qc8 {[%emt 0:00:26]} 46. Qd1 {[%emt 0:01:19]} Bc5 {[%emt 0:01:00]} 47. Ne4 {[%emt 0:00:51]} b4 {[%emt 0:00:08]} 48. Rd3 {[%emt 0:00:43]} Qb8 {[%emt 0:00:30]} 49. Qc1 {[%emt 0:00:50]} Qe5 {[%emt 0:00:43]} 50. Qd1 {[%emt 0:00:57]} Qf4 {[%emt 0:00:31]} 51. Qe1 {[%emt 0:00:13]} Re8 {[%emt 0:00:26]} 52. Rh3 {[%emt 0:00:30]} Qe5 {[%emt 0:00:37]} 53. Qd1 {[%emt 0:00:24]} Qf5 {[%emt 0:00:32]} 54. Rf3 {[%emt 0:00:39]} Qe5 {[%emt 0:00:20]} 55. Rh3 {[%emt 0:00:15]} Qf5 {[%emt 0:00:08]} 56. Rf3 {[%emt 0:00:05]} Qe5 57. Qb3 {[%emt 0:01:16]} Qd4 {[%emt 0:00:50]} 58. Qf7 {[%emt 0:00:28]} Qg1# {[%emt 0:00:05]} 0-1